bitfinex-derivatives/quotes_SOLF0:USTF0_20240829
["timestamp","ask_amount","ask_price","bid_price","bid_amount"]
[1724948597549,0.0512442,145.87,145.86,10.53]
[1724948597752,0.0512442,145.87,145.86,13.957]
[1724948598051,0.0512442,145.87,145.86,10.53]
[1724948598252,0.0512442,145.87,145.84,15.21963144]
[1724948598656,0.0512442,145.87,145.85,3.4271]
[1724948600156,3.4273,145.85,145.84,0.04963144]
[1724948601350,10.53,145.85,145.74,3.50117917]
[1724948601559,10.53,145.83,145.77,10.53]
[1724948601765,10.53,145.83,145.77,18.634589]
[1724948602056,10.53,145.83,145.77,22.063589]
[1724948602560,3.47918888,145.81,145.79,0.05216142]
[1724948603362,0.05078888,145.81,145.8,10.53]
[1724948603667,0.05078888,145.81,145.8,13.9584]
[1724948603857,0.05078888,145.81,145.79,0.05216142]
[1724948604259,0.05078888,145.81,145.79,3.48066142]
[1724948604756,0.05078888,145.81,145.79,0.05216142]
[1724948605255,0.05078888,145.81,145.8,3.4284]
[1724948605466,0.05078888,145.81,145.79,0.05216142]
[1724948605963,0.05078888,145.81,145.79,3.48076142]
[1724948606462,0.05078888,145.81,145.79,0.05216142]
[1724948607559,3.47918888,145.81,145.79,0.05216142]
[1724948608363,3.4284,145.8,145.79,0.05216142]
[1724948609163,3.47908888,145.81,145.79,0.05216142]
[1724948611457,3.4284,145.8,145.79,0.05216142]
[1724948615769,3.47918888,145.81,145.79,0.05216142]
[1724948616267,3.4284,145.8,145.79,0.05216142]
[1724948616872,3.4284,145.8,145.75,3.4296]
[1724948617174,3.4293,145.77,145.72,4.64]
[1724948617370,10.53,145.78,145.72,15.17]
[1724948617569,10.53,145.78,145.72,10.53]
[1724948617772,3.4294,145.76,145.74,3.4297]
[1724948618071,3.47479219,145.76,145.74,3.47763044]
[1724948618275,0.04539219,145.76,145.75,3.4296]
[1724948619776,0.04539219,145.76,145.75,3.4293]
[1724948621771,0.04539219,145.76,145.74,3.42357199]
[1724948623283,0.04539219,145.76,145.75,3.4293]
[1724948624677,0.04539219,145.76,145.74,6.85297199]
[1724948625074,3.47449219,145.76,145.74,6.85297199]
[1724948626276,0.04539219,145.76,145.74,3.42357199]
[1724948626481,0.04539219,145.76,145.74,0.04793044]
[1724948627274,3.4293,145.75,145.74,0.04793044]
[1724948631381,0.04539219,145.76,145.71,3.4302]
[1724948631583,0.04539219,145.76,145.71,10.53]
[1724948632277,3.4294,145.75,145.72,3.4298]
[1724948632478,3.4294,145.75,145.72,3.47858636]
[1724948632683,0.04539219,145.76,145.72,10.57878636]
[1724948632880,0.04539219,145.76,145.74,10.53]
[1724948633787,0.04539219,145.76,145.75,3.4293]
[1724948633988,0.04539219,145.76,145.75,13.9593]
[1724948636382,0.04539219,145.76,145.75,3.4293]
[1724948636686,0.04539219,145.76,145.75,13.9593]
[1724948637989,0.04539219,145.76,145.75,18.5993]
[1724948639390,3.4277,145.82,145.79,3.4283]
[1724948640283,0.04765944,145.82,145.79,0.05006897]
[1724948640493,10.57765944,145.82,145.79,0.05006897]
[1724948641286,3.4281,145.8,145.79,0.05006897]
[1724948643791,0.04765944,145.82,145.79,0.05006897]
[1724948643990,0.04765944,145.82,145.79,10.58006897]
[1724948644186,0.04765944,145.82,145.8,10.53]
[1724948644586,0.04765944,145.82,145.81,3.4279]
[1724948644991,0.04765944,145.82,145.81,13.9579]
[1724948645391,0.04765944,145.82,145.81,18.5979]
[1724948645891,0.04765944,145.82,145.81,8.0679]
[1724948646190,0.04765944,145.82,145.79,3.47816897]
[1724948646990,3.47545944,145.82,145.79,3.47816897]
[1724948647291,0.04765944,145.82,145.79,0.05006897]
[1724948647486,3.47545944,145.82,145.79,0.05006897]
[1724948648096,3.4279,145.81,145.79,0.05006897]
[1724948649190,3.4281,145.8,145.79,0.05006897]
[1724948651391,3.4289,145.77,145.74,6.88610142]
[1724948651587,2.7389,145.84,145.74,3.45670142]
[1724948651787,10.53,145.8,145.73,10.53]
[1724948651994,3.4286,145.78,145.75,3.4291]
[1724948652194,3.4286,145.78,145.75,6.81834355]
[1724948652496,3.47756038,145.78,145.75,3.47787743]
[1724948652698,0.04896038,145.78,145.76,3.429]
[1724948653794,0.04896038,145.78,145.75,10.57877743]
[1724948654297,0.04896038,145.78,145.76,3.4288]
[1724948655294,0.04896038,145.78,145.77,3.4288]
[1724948655594,0.04896038,145.78,145.77,13.9588]
[1724948656395,3.4283,145.79,145.76,13.959]
[1724948656789,10.53,145.82,145.76,10.53]
[1724948656990,3.4285,145.79,145.76,10.53]
[1724948657199,3.4285,145.79,145.75,3.4291]
[1724948657500,0.05006309,145.78,145.76,0.0495687]
[1724948658200,0.05006309,145.78,145.76,3.4785687]
[1724948661297,0.05006309,145.78,145.76,10.5795687]
[1724948661895,0.05006309,145.78,145.76,14.0084687]
[1724948663500,0.05006309,145.78,145.77,3.4288]
[1724948665799,0.05006309,145.78,145.77,13.9588]
[1724948666303,0.05006309,145.78,145.76,0.0495687]
[1724948667306,3.47876309,145.78,145.76,3.4785687]
[1724948669001,0.05006309,145.78,145.77,3.4288]
[1724948669402,0.05006309,145.78,145.76,10.5795687]
[1724948669799,0.05006309,145.78,145.76,14.0084687]
[1724948671504,0.05006309,145.78,145.76,0.0495687]
[1724948672406,0.05006309,145.78,145.76,3.4784687]
[1724948673800,0.05006309,145.78,145.77,3.4288]
[1724948675702,0.05006309,145.78,145.77,13.9588]
[1724948676406,0.05006309,145.78,145.77,3.4288]
[1724948682011,0.05006309,145.78,145.76,10.5795687]
[1724948682317,0.05006309,145.78,145.76,3.4784687]
[1724948683213,3.47876309,145.78,145.76,0.0495687]
[1724948684216,3.47876309,145.78,145.76,3.4784687]
[1724948684414,0.05006309,145.78,145.76,3.4784687]
[1724948685320,3.47866309,145.78,145.76,0.0495687]
[1724948686312,3.47866309,145.78,145.76,3.4785687]
[1724948687523,0.05006309,145.78,145.76,3.4785687]
[1724948688725,0.05006309,145.78,145.77,3.4288]
[1724948691529,0.05006309,145.78,145.76,3.4785687]
[1724948693321,0.05006309,145.78,145.76,0.0495687]
[1724948694422,3.4288,145.77,145.76,0.0495687]
[1724948695231,13.9588,145.77,145.76,0.0495687]
[1724948698030,13.9588,145.77,145.7,10.53]
[1724948698031,3.4296,145.74,145.71,3.4301]
[1724948698731,3.4298,145.73,145.7,13.9604]
[1724948698950,3.48136021,145.73,145.7,14.00862912]
[1724948699742,0.05156021,145.73,145.7,0.04822912]
[1724948699935,3.43,145.72,145.7,0.04822912]
[1724948700538,0.05156021,145.73,145.7,0.04822912]
[1724948700935,0.05156021,145.73,145.7,10.57822912]
[1724948701341,3.48146021,145.73,145.7,14.00862912]
[1724948702037,0.05156021,145.73,145.7,0.04822912]
[1724948702446,3.4301,145.72,145.7,0.04822912]
[1724948702641,0.05156021,145.73,145.7,0.04822912]
[1724948703043,3.4302,145.71,145.7,0.04822912]
[1724948712353,3.4302,145.72,145.7,0.04822912]
[1724948712545,10.58156021,145.73,145.7,0.04822912]
[1724948713546,3.4302,145.72,145.7,0.04822912]
[1724948714950,10.58156021,145.73,145.7,0.04822912]
[1724948714951,14.01146021,145.73,145.7,0.04822912]
[1724948715155,0.05156021,145.73,145.7,0.04822912]
[1724948715451,0.05156021,145.73,145.71,3.4301]
[1724948715840,0.05156021,145.73,145.7,0.04822912]
[1724948716043,0.05156021,145.73,145.72,3.43]
[1724948717044,0.05156021,145.73,145.71,10.53]
[1724948718440,0.05156021,145.73,145.72,3.43]
[1724948720250,10.53,145.8,145.72,10.53]
[1724948720452,10.53,145.8,145.74,10.53]
[1724948720652,10.53,145.8,145.74,13.90223547]
[1724948720854,3.4285,145.79,145.75,3.4291]
[1724948721254,0.0487473,145.78,145.76,3.47308271]
[1724948721451,0.0487473,145.78,145.76,0.04408271]
[1724948722856,0.0487473,145.78,145.77,3.4288]
[1724948730664,3.4277,145.82,145.79,3.4282]
[1724948730964,3.4277,145.82,145.79,10.53]
[1724948731467,96.71115105,145.83,145.76,10.53]
[1724948731765,3.47440407,145.81,145.78,3.47724875]
[1724948735465,3.4283,145.8,145.78,0.04884875]
[1724948735666,10.53,145.8,145.78,0.04884875]
[1724948737270,10.53,145.8,145.71,10.53]
[1724948737466,10.53,145.77,145.7,10.53]
[1724948738076,3.4292,145.76,145.72,3.4298]
[1724948738270,0.04314091,145.75,145.73,0.0526585]
[1724948738782,0.04314091,145.75,145.73,3.4823585]
[1724948746879,0.04314091,145.75,145.74,3.4295]
[1724948749775,0.04314091,145.75,145.73,14.0122585]
[1724948751475,0.04314091,145.75,145.73,3.4822585]
[1724948752083,0.04314091,145.75,145.74,3.4295]
[1724948752379,0.04314091,145.75,145.73,0.0526585]
[1724948752781,3.4295,145.74,145.73,0.0526585]
[1724948754782,10.53,145.75,145.65,3.41959393]
[1724948755079,10.53,145.71,145.65,17.38109393]
[1724948755682,3.4308,145.69,145.65,6.85109393]
[1724948755883,3.4308,145.69,145.67,0.04371137]
[1724948755884,3.47995323,145.69,145.67,0.04371137]
[1724948758184,0.04915323,145.69,145.67,0.04371137]
[1724948758579,10.53,145.68,145.62,3.46991845]
[1724948758781,10.53,145.67,145.6,10.53]
[1724948758976,10.53,145.67,145.6,13.91620675]
[1724948759176,3.432,145.64,145.6,6.81890675]
[1724948759385,3.432,145.64,145.6,17.34890675]
[1724948759583,0.04366999,145.63,145.61,0.04874369]
[1724948762189,3.47596999,145.63,145.61,0.04874369]
[1724948762787,3.4323,145.62,145.61,0.04874369]
[1724948763289,3.4323,145.62,145.49,37.746]
[1724948763290,10.53,145.62,145.52,1.3044]
[1724948763488,10.53,145.59,145.51,10.53]
[1724948763694,10.53,145.59,145.51,13.93155012]
[1724948763989,3.4339,145.56,145.51,17.36645012]
[1724948764189,10.57518637,145.55,145.52,0.04438356]
[1724948764490,10.53,145.54,145.52,0.04438356]
[1724948764687,10.53,145.54,145.34,6.878]
[1724948764688,11.818,145.54,145.34,6.878]
[1724948764985,10.53,145.51,145.44,10.53]
[1724948765188,1.288,145.54,145.44,13.8919902]
[1724948765387,10.53,145.52,145.44,13.8919902]
[1724948765587,3.4359,145.47,145.42,3.4371]
[1724948765787,10.53,145.5,145.42,3.4371]
[1724948765788,0.04402424,145.46,145.43,10.53]
[1724948765982,0.04402424,145.46,145.42,3.4371]
[1724948766187,0.04402424,145.46,145.44,3.4366]
[1724948766783,0.04402424,145.46,145.41,1.3379]
[1724948767490,3.48012424,145.46,145.41,4.775]
[1724948767891,0.04402424,145.46,145.41,1.3379]
[1724948768287,0.04402424,145.46,145.42,3.4371]
[1724948769290,0.04402424,145.46,145.37,26.38]
[1724948769593,26.38,145.47,145.37,29.74441512]
[1724948769594,0.05002206,145.43,145.37,29.74441512]
[1724948769895,0.05002206,145.43,145.4,3.4374]
[1724948770982,0.05002206,145.43,145.37,29.74441512]
[1724948771693,0.05002206,145.43,145.41,3.4372]
[1724948771995,0.05002206,145.43,145.37,29.74441512]
[1724948772400,0.05002206,145.43,145.41,3.4373]
[1724948772695,0.05002206,145.43,145.39,26.38]
[1724948772992,0.05002206,145.43,145.42,3.4371]
[1724948774489,3.4355,145.49,145.45,3.4363]
[1724948774695,27.6326,145.53,145.43,26.38]
[1724948774895,27.6326,145.53,145.46,3.436]
[1724948774896,3.4351,145.51,145.46,3.436]
[1724948775200,26.38,145.51,145.4,8.5759]
[1724948775494,0.04730906,145.47,145.44,0.04813754]
[1724948776886,3.48330906,145.47,145.44,0.04813754]
[1724948777997,0.04730906,145.47,145.44,3.48473754]
[1724948778297,0.04730906,145.47,145.45,3.35490664]
[1724948778688,0.04730906,145.47,145.46,3.4361]
[1724948782095,3.435,145.51,145.48,3.4356]
[1724948783101,3.48411126,145.51,145.48,3.47964911]
[1724948783297,0.04911126,145.51,145.49,3.4354]
[1724948783803,0.04911126,145.51,145.5,3.4352]
[1724948785698,0.04911126,145.51,145.49,3.4353]
[1724948785900,0.04911126,145.51,145.48,0.04404911]
[1724948786404,0.04911126,145.51,145.48,3.47964911]
[1724948787806,3.48411126,145.51,145.48,0.04404911]
[1724948789212,0.04911126,145.51,145.48,3.47954911]
[1724948790409,0.04911126,145.51,145.48,0.04404911]
[1724948790410,3.48411126,145.51,145.48,0.04404911]
[1724948791409,3.48411126,145.51,145.48,3.47964911]
[1724948793315,0.04911126,145.51,145.48,3.47964911]
[1724948793915,3.48411126,145.51,145.48,3.47964911]
[1724948795110,0.04911126,145.51,145.48,3.47964911]
[1724948795817,0.04911126,145.51,145.49,3.4353]
[1724948796016,3.48411126,145.51,145.48,0.04404911]
[1724948796716,3.4352,145.5,145.48,0.04404911]
[1724948797417,0.04911126,145.51,145.48,0.04404911]
[1724948797619,26.42911126,145.51,145.48,0.04404911]
[1724948798122,3.4354,145.49,145.48,0.04404911]
[1724948800231,3.4353,145.5,145.48,0.04404911]
[1724948800441,0.04911126,145.51,145.48,0.04404911]
[1724948800825,3.48431126,145.51,145.48,0.04404911]
[1724948803932,3.48431126,145.51,145.48,3.47964911]
[1724948806342,3.48431126,145.51,145.48,0.04404911]
[1724948808329,3.48431126,145.51,145.48,3.47964911]
[1724948808941,3.4352,145.5,145.48,0.04404911]
[1724948809845,0.04911126,145.51,145.48,0.04404911]
[1724948810237,3.4352,145.5,145.48,0.04404911]
[1724948810430,0.04911126,145.51,145.48,0.04404911]
[1724948811137,3.48421126,145.51,145.48,3.47964911]
[1724948812442,3.4352,145.5,145.48,0.04404911]
[1724948813837,3.48421126,145.51,145.48,0.04404911]
[1724948814039,3.48421126,145.51,145.48,3.47964911]
[1724948815940,3.4354,145.49,145.48,0.04404911]
[1724948816146,0.04911126,145.51,145.48,0.04404911]
[1724948817345,3.4353,145.5,145.48,0.04404911]
[1724948819849,0.04911126,145.51,145.48,0.04404911]
[1724948820445,3.4354,145.49,145.48,0.04404911]
[1724948822049,13.9854,145.49,145.48,0.04404911]
[1724948822843,3.4359,145.47,145.43,3.4367]
[1724948823042,3.4359,145.47,145.44,10.55]
[1724948823948,3.4828121,145.47,145.44,10.60001853]
[1724948825147,3.4828121,145.47,145.44,0.05001853]
[1724948826550,3.4364,145.45,145.44,0.05001853]
[1724948831361,0.0469121,145.47,145.44,0.05001853]
[1724948831550,0.0469121,145.47,145.44,10.60001853]
[1724948831953,3.4361,145.46,145.44,0.05001853]
[1724948832354,0.0469121,145.47,145.44,0.05001853]
[1724948832557,3.4363,145.46,145.44,0.05001853]
[1724948832753,0.0469121,145.47,145.44,0.05001853]
[1724948833149,3.4364,145.45,145.44,0.05001853]
[1724948835950,3.4364,145.45,145.02,3.4465]
[1724948835951,75.43847343,145.25,145.02,3.4465]
[1724948836159,7.09752285,145.24,145.02,2.5663]
[1724948836359,26.38,145.19,145.04,26.38]
[1724948836858,0.05024816,145.13,145.04,26.38]
[1724948837063,3.49728636,145.1,145.04,3.50624472]
[1724948837259,3.49728636,145.1,144.89,3.46802108]
[1724948837260,0.04751172,145.08,144.75,563.0]
[1724948837461,3.4447,145.1,145.02,26.38]
[1724948837656,0.05069644,145.07,145.02,29.77880529]
[1724948837959,17.58661204,145.06,145.01,5.64]
[1724948838158,7.12756657,145.05,145.0,33.07]
[1724948838359,17.58856986,145.04,145.01,3.39088507]
[1724948838563,17.58856986,145.04,145.0,33.07]
[1724948838564,14.23552253,145.04,145.02,38.71]
[1724948838767,0.04919117,145.05,145.03,5.64]
[1724948839062,3.44573762,145.12,145.03,5.64]
[1724948839265,13.94700243,145.11,145.03,5.64]
[1724948839462,13.94700243,145.1,145.03,5.64]
[1724948839664,10.50126481,145.09,145.03,9.0861]
[1724948839859,36.56832451,145.16,145.03,5.64]
[1724948840166,0.04541937,145.11,145.08,0.05009551]
[1724948840360,10.50121816,145.1,145.08,0.05009551]
[1724948840763,0.04541937,145.11,145.08,0.05009551]
[1724948842369,0.04541937,145.11,145.08,3.49509551]
[1724948842863,0.04541937,145.11,145.08,0.05009551]
[1724948844375,0.04541937,145.11,145.08,3.49519551]
[1724948844569,10.50121816,145.13,145.08,3.49519551]
[1724948844872,3.49832451,145.16,145.08,3.49519551]
[1724948845073,10.50712132,145.15,145.08,3.49519551]
[1724948845373,10.50712132,145.14,145.08,3.4451]
[1724948845672,0.04498632,145.12,145.1,0.05247446]
[1724948845868,0.05027399,145.12,145.1,0.05247446]
[1724948852375,33.07,145.26,145.11,33.07]
[1724948852582,7.07930968,145.25,145.15,33.07]
[1724948852876,3.42200441,145.25,145.15,33.07]
[1724948853175,3.42200441,145.25,145.17,33.07]
[1724948853377,0.04406511,145.22,145.2,0.05204208]
[1724948853568,0.04483809,145.22,145.2,0.05204208]
[1724948853971,0.04483809,145.22,145.2,3.49424208]
[1724948854275,0.04483809,145.22,145.2,0.05204208]
[1724948854869,33.07,145.3,145.2,0.05204208]
[1724948855077,3.45231201,145.29,145.2,33.07]
[1724948855378,33.07,145.3,145.2,33.07]
[1724948855770,36.48308936,145.3,145.2,33.07]
[1724948856077,0.05147739,145.26,145.24,0.04808543]
[1724948856573,0.05147739,145.26,145.24,3.48928543]
[1724948856775,0.05147739,145.26,145.24,0.04808543]
[1724948857174,0.05147739,145.26,145.25,3.4411]
[1724948860774,0.05147739,145.26,145.24,0.04808543]
[1724948861180,0.05147739,145.26,145.25,3.4411]
[1724948863191,3.4403,145.29,145.26,3.4407]
[1724948863780,3.4404,145.28,145.25,3.441]
[1724948863991,3.4404,145.28,145.22,5.64]
[1724948864179,0.04925451,145.26,145.24,0.04383591]
[1724948864379,3.4411,145.25,145.24,0.04383591]
[1724948868879,0.04925451,145.26,145.24,0.04383591]
[1724948869385,0.04925451,145.26,145.24,3.48503591]
[1724948869884,0.04925451,145.26,145.25,3.4411]
[1724948870188,0.04925451,145.26,145.24,0.04383591]
[1724948870782,0.04925451,145.26,145.24,3.48513591]
[1724948870987,0.04925451,145.26,145.24,0.04383591]
[1724948873283,0.04925451,145.26,145.25,3.4411]
[1724948874984,36.5094,145.32,145.24,0.04383591]
[1724948875185,38.71,145.34,145.24,1.42443591]
[1724948875490,33.07,145.34,145.24,1.3806]
[1724948876085,0.04769641,145.3,145.28,0.047923]
[1724948876285,0.04949437,145.3,145.28,0.047923]
[1724948876591,0.04949437,145.3,145.29,3.4401]
[1724948876787,0.04949437,145.3,145.28,0.047923]
[1724948876986,3.48959437,145.3,145.28,0.047923]
[1724948877995,0.04949437,145.3,145.28,0.047923]
[1724948879293,3.48949437,145.3,145.28,0.047923]
[1724948879695,0.04949437,145.3,145.28,0.047923]
[1724948879894,3.4401,145.29,145.28,0.047923]
[1724948882694,36.5101,145.29,145.28,0.047923]
[1724948882896,36.5101,145.29,145.14,33.07]
[1724948882897,66.14,145.29,145.14,33.07]
[1724948883095,33.07,145.24,145.18,3.4426]
[1724948883295,3.4419,145.22,145.18,3.4426]
[1724948883596,33.07,145.24,145.17,7.0132]
[1724948883796,0.05176754,145.22,145.19,0.04591608]
[1724948884001,0.05176754,145.22,145.21,3.442]
[1724948884494,0.05176754,145.22,145.19,0.04591608]
[1724948884801,0.05176754,145.22,145.2,3.442]
[1724948884986,0.05176754,145.22,145.19,0.04591608]
[1724948885996,0.05176754,145.22,145.21,3.442]
[1724948888302,0.05176754,145.22,145.19,0.04591608]
[1724948889295,0.05176754,145.22,145.21,3.442]
[1724948890096,0.05176754,145.22,145.19,0.04591608]
[1724948890602,0.05176754,145.22,145.21,3.442]
[1724948892898,0.05176754,145.22,145.2,3.4421]
[1724948893900,0.05176754,145.22,145.2,3.4423]
[1724948894094,0.05176754,145.22,145.19,0.04591608]
[1724948894706,0.05176754,145.22,145.21,3.442]
[1724948896603,0.05176754,145.22,145.2,3.4421]
[1724948896801,3.49356754,145.22,145.2,3.4421]
[1724948897200,3.4423,145.2,145.19,0.04591608]
[1724948901702,3.4421,145.21,145.19,0.04591608]
[1724948902007,0.05176754,145.22,145.19,0.04591608]
[1724948902508,3.49366754,145.22,145.19,3.48831608]
[1724948902905,0.05176754,145.22,145.19,0.04591608]
[1724948903509,0.05176754,145.22,145.2,3.4422]
[1724948905403,3.49366754,145.22,145.19,3.48831608]
[1724948906408,3.49366754,145.22,145.19,0.04591608]
[1724948906409,3.4421,145.21,145.19,0.04591608]
[1724948906910,3.442,145.21,145.19,0.04591608]
[1724948907500,0.05176754,145.22,145.19,0.04591608]
[1724948909711,3.4422,145.21,145.19,0.04591608]
[1724948910204,0.05176754,145.22,145.19,0.04591608]
[1724948910411,3.4423,145.2,145.19,0.04591608]
[1724948911606,3.4423,145.2,145.09,2.5895]
[1724948911607,26.43,145.21,145.1,1.3869]
[1724948911806,26.43,145.18,145.12,3.444]
[1724948912310,3.4432,145.16,145.12,3.444]
[1724948912510,0.05164521,145.15,145.13,0.04814726]
[1724948912712,0.05164521,145.15,145.13,3.49204726]
[1724948913213,0.05164521,145.15,145.13,0.04814726]
[1724948914019,3.49524521,145.15,145.13,0.04814726]
[1724948914815,0.05164521,145.15,145.13,0.04814726]
[1724948915208,3.49524521,145.15,145.13,0.04814726]
[1724948916123,3.4437,145.14,145.13,0.04814726]
[1724948917407,0.05164521,145.15,145.13,0.04814726]
[1724948918416,3.49514521,145.15,145.13,0.04814726]
[1724948918617,0.05164521,145.15,145.13,0.04814726]
[1724948920120,0.05164521,145.15,145.13,3.49204726]
[1724948920913,0.05164521,145.15,145.13,0.04814726]
[1724948922520,0.05164521,145.15,145.13,3.49204726]
[1724948922724,0.05164521,145.15,145.13,0.04814726]
[1724948924920,0.05164521,145.15,145.13,3.49194726]
[1724948925423,0.05164521,145.15,145.13,0.04814726]
[1724948925918,3.49514521,145.15,145.13,0.04814726]
[1724948926123,0.05164521,145.15,145.13,0.04814726]
[1724948928226,0.05164521,145.15,145.14,3.4437]
[1724948934229,0.05164521,145.15,145.13,0.04814726]
[1724948934829,0.05164521,145.15,145.14,3.4437]
[1724948935030,0.05164521,145.15,145.13,0.04814726]
[1724948936036,0.05164521,145.15,145.13,3.49204726]
[1724948936535,0.05164521,145.15,145.14,3.4437]
[1724948941138,0.05164521,145.15,145.13,0.04814726]
[1724948942335,3.49514521,145.15,145.13,0.04814726]
[1724948942535,0.05164521,145.15,145.13,3.49204726]
[1724948942833,0.05164521,145.15,145.09,2.5895]
[1724948942834,26.43,145.14,145.05,1.3404]
[1724948943033,26.43,145.14,145.05,2.6338]
[1724948943230,26.43,145.12,145.05,2.6338]
[1724948943936,26.43,145.12,145.07,0.04686193]
[1724948943937,0.05110271,145.1,145.07,0.04686193]
[1724948944533,3.445,145.09,145.07,0.04686193]
[1724948944841,0.05110271,145.1,145.07,0.04686193]
[1724948945235,3.49590271,145.1,145.07,0.04686193]
[1724948946335,0.05110271,145.1,145.07,3.49216193]
[1724948947128,3.49590271,145.1,145.07,0.04686193]
[1724948948040,0.05110271,145.1,145.07,0.04686193]
[1724948949041,3.49580271,145.1,145.07,0.04686193]
[1724948950645,0.05110271,145.1,145.07,3.49206193]
[1724948951342,3.49580271,145.1,145.07,3.49206193]
[1724948951544,3.49580271,145.1,145.07,0.04686193]
[1724948952140,3.49580271,145.1,145.07,3.49216193]
[1724948952643,3.49580271,145.1,145.07,0.04686193]
[1724948953240,3.49580271,145.1,145.07,3.49216193]
[1724948954148,3.4451,145.08,145.07,0.04686193]
[1724948954348,0.05110271,145.1,145.07,0.04686193]
[1724948954848,3.445,145.09,145.07,0.04686193]
[1724948955247,3.49580271,145.1,145.07,0.04686193]
[1724948955440,0.05110271,145.1,145.07,0.04686193]
[1724948957242,0.05110271,145.1,145.08,3.445]
[1724948958147,3.49580271,145.1,145.07,3.49196193]
[1724948958344,0.05110271,145.1,145.07,0.04686193]
[1724948959549,0.05110271,145.1,145.09,3.4449]
[1724948963948,0.05110271,145.1,145.09,4.7055]
[1724948965257,3.4441,145.13,145.11,3.4444]
[1724948965449,3.4436,145.15,145.1,10.59]
[1724948965651,95.69552101,145.31,145.12,10.59]
[1724948965652,1.2869,145.21,145.12,10.59]
[1724948965855,1.2869,145.21,145.13,3.4438]
[1724948965856,10.59,145.19,145.13,3.4438]
[1724948966053,10.59,145.19,145.12,10.59]
[1724948966361,10.59,145.19,145.14,0.05045014]
[1724948966362,0.04627887,145.17,145.14,0.05045014]
[1724948966959,3.4433,145.16,145.14,0.05045014]
[1724948967262,0.04627887,145.17,145.14,0.05045014]
[1724948968158,10.59,145.15,145.14,0.05045014]
[1724948968557,14.0335,145.15,145.14,0.05045014]
[1724948969153,0.04627887,145.17,145.14,0.05045014]
[1724948969358,10.63627887,145.17,145.14,0.05045014]
[1724948970062,0.04627887,145.17,145.14,0.05045014]
[1724948970262,3.48937887,145.17,145.14,0.05045014]
[1724948971459,3.4432,145.16,145.14,0.05045014]
[1724948971960,3.48937887,145.17,145.14,0.05045014]
[1724948972955,3.4433,145.16,145.14,0.05045014]
[1724948976461,3.48937887,145.17,145.14,0.05045014]
[1724948977565,3.4433,145.16,145.14,0.05045014]
[1724948979471,0.04627887,145.17,145.14,0.05045014]
[1724948980168,0.04627887,145.17,145.15,3.4433]
[1724948981568,0.04627887,145.17,145.16,3.4432]
[1724948985063,0.04627887,145.17,145.15,2.7546]
[1724948985064,0.04627887,145.17,145.15,6.1979]
[1724948985271,0.04627887,145.17,145.15,2.7546]
[1724948985969,26.46,145.23,145.15,29.2146]
[1724948986165,7.11273898,145.22,145.15,29.2146]
[1724948986368,26.46,145.25,145.15,29.2146]
[1724948986666,26.46,145.25,145.19,3.4424]
[1724948986667,3.4419,145.22,145.19,3.4424]
[1724948987066,3.48800781,145.22,145.19,3.48686582]
[1724948987267,0.04610781,145.22,145.2,3.4423]
[1724948987965,3.48790781,145.22,145.19,0.04446582]
[1724948988661,3.48790781,145.22,145.19,3.48686582]
[1724948989367,3.4423,145.2,145.19,0.04446582]
[1724948989568,0.04610781,145.22,145.19,0.04446582]
[1724948990570,3.48800781,145.22,145.19,3.48686582]
[1724948992272,3.4423,145.2,145.19,0.04446582]
[1724948993067,14.0223,145.2,145.19,0.04446582]
[1724948993577,10.58,145.21,145.19,0.04446582]
[1724948993871,3.4423,145.2,145.19,0.04446582]
[1724948994764,10.62610781,145.22,145.19,0.04446582]
[1724948995574,14.06800781,145.22,145.19,0.04446582]
[1724948995970,0.04610781,145.22,145.19,0.04446582]
[1724948996176,3.48810781,145.22,145.19,0.04446582]
[1724948996777,3.4422,145.21,145.19,0.04446582]
[1724948997377,10.62610781,145.22,145.19,0.04446582]
[1724948997581,0.04610781,145.22,145.19,0.04446582]
[1724948998582,3.48790781,145.22,145.19,0.04446582]
[1724949000882,0.04610781,145.22,145.19,3.48696582]
[1724949001187,0.04610781,145.22,145.19,0.04446582]
[1724949001375,3.48800781,145.22,145.19,0.04446582]
[1724949001684,0.04610781,145.22,145.19,0.04446582]
[1724949002481,3.4422,145.21,145.19,0.04446582]
[1724949002984,3.4423,145.2,145.19,0.04446582]
[1724949003188,0.04610781,145.22,145.19,0.04446582]
[1724949003688,3.4422,145.21,145.19,0.04446582]